Cogmind - Beta 15 @@@ ROGUE MODE // 2025.08.06 @ 13:15:53 Player: Lyla Result: Destroyed by Q7-WXZ(R) with Subdweller Laser Performance ------------- Evolutions (0) 0 Regions Visited (3) 600 Robots Destroyed (9) 45 Value Destroyed (193) 193 Prototype IDs (1) 20 Alien Tech Used (0) 0 Bonus (0) 0 TOTAL SCORE: 858 Bonus ------- None Cogmind --------- Core Integrity 0/250 Matter 255/300 Energy 40/100 System Corruption 0% Temperature Cool (12) Movement Core (50) Location -10/Subcaves Parts ------- > --- POWER (1) -------- (None) > --- PROPULSION (2) --- (None) > --- UTILITY (2) ------ (None) > --- WEAPON (2) ------- (None) > --- INVENTORY (5) ---- Aluminum Leg Aluminum Leg Blade Trap Blade Trap Peak State ------------ > --- POWER ------------ Light Ion Engine > --- PROPULSION ------- Aluminum Leg Aluminum Leg > --- UTILITY ---------- Medium Storage Unit Experimental Sensor Array > --- WEAPON ----------- Mining Laser Welding Torch > --- INVENTORY -------- Aluminum Leg Aluminum Leg Aluminum Leg Authchip [Armor] Assault Rifle Blade Trap Blade Trap Blade Trap Blade Trap [Rating: 16] Favorites ----------- Power Ion Engine Engine Ion Engine Propulsion Aluminum Leg Leg Aluminum Leg Utility Small Storage Unit Device Experimental Sensor Array Storage Small Storage Unit Weapon Assault Rifle Ballistic Gun Assault Rifle Special Weapon Welding Torch Build | -11 -10 -10 -10 ------- Run | Yrd Mat Min Sub Slots Evolved . | . . . . Power . | . . . . Propulsion . | . . . . Utility . | . . . . Weapon . | . . . . Parts Attached 15 | 7 1 7 . Power 2 | 1 . 1 . Engine 2 | 1 . 1 . Core . | . . . . Reactor . | . . . . Propulsion 3 | 2 . 1 . Treads . | . . . . Leg 3 | 2 . 1 . Wheel . | . . . . Hover . | . . . . Flight . | . . . . Utility 5 | 2 1 2 . Device 3 | 1 . 2 . Storage 2 | 1 1 . . Processor . | . . . . Hackware . | . . . . Protection . | . . . . Artifact . | . . . . Weapon 5 | 2 . 3 . Energy Gun . | . . . . Energy Cannon . | . . . . Ballistic Gun 3 | 2 . 1 . Ballistic Cannon . | . . . . Launcher . | . . . . Special Weapon 2 | . . 2 . Impact Weapon . | . . . . Slashing Weapon . | . . . . Piercing Weapon . | . . . . Special Melee Weapon . | . . . . Unidentified Prototypes 1 | . . 1 . Parts Lost 7 | . . 4 3 Power 2 | . . 1 1 Propulsion . | . . . . Utility 1 | . . 1 . Weapon 4 | . . 2 2 Highest Loss Streak 4 | . . 4 3 To Critical Strikes . | . . . . Average Backups 6 | 5 7 6 4 Power . | . 1 . . Propulsion 3 | 3 3 3 3 Utility . | . 1 1 1 Weapon 1 | . 1 1 . Tool/Special . | . . . . Unused Backups 10 | . 2 5 3 Power . | . . . . Propulsion 6 | . 2 2 2 Utility 3 | . . 2 1 Weapon 1 | . . 1 . Tool/Special . | . . . . Average Slot Usage (%) 97 | . 100 96 93 Engine 13 | . 14 14 10 Leg 28 | . 28 28 28 Device 13 | . 14 13 14 Storage 14 | . 14 14 14 Ballistic Gun 12 | . 28 4 6 Special Weapon 13 | . . 20 20 Peak Build Rating 16 | 9 10 16 16 Average Rating 8 | 5 9 12 15 On Entrance 8 | . 9 10 16 Naked Turns . | . . . . Heaviest Build 20 | 15 20 16 17 Greatest Support 20 | 20 20 20 20 Greatest Overweight (x) 4 | 4 . . . Average Overweight (x) . | . . . . Largest Inventory Capacity 10 | 8 10 10 10 Average Capacity 8 | 7 8 10 10 Most Carried 10 | 8 10 10 10 Average Carried 7 | 5 7 9 9 Final Capacity 10 | 8 10 10 5 Final Carried 10 | 7 10 10 4 Class Distribution -------------------- 100% | Mutant Dominant Class ---------------- Mutant | -10/Materials Mutant | -10/Mines Mutant | -10/Subcaves Resources | -11 -10 -10 -10 ----------- Run | Yrd Mat Min Sub Matter Collected 527 | 253 161 113 . Remotely . | . . . . Salvage Created 459 | 65 228 166 . Parts 16 | 6 7 3 . Haulers Intercepted . | . . . . Recyclers Shooed 4 | . 3 1 . Parts Field Recycled . | . . . . Retrieved Matter . | . . . . Parts Self-Destructed . | . . . . Prevented . | . . . . Kills | -11 -10 -10 -10 ------- Run | Yrd Mat Min Sub Combat Hostiles Destroyed 4 | . 2 2 . Guns 4 | . 2 2 . Classes Destroyed 3 | 2 1 . . Tunneler 1 | 1 . . . Recycler 4 | 1 2 1 . Grunt 4 | . 2 2 . Best Kill Streak 3 | 2 3 1 . Combat Bots Only 1 | . 1 1 . Max Kills in Single Turn 2 | 2 1 1 . Gunslinging . | . . . . Exploded . | . . . . Melee . | . . . . Uniques/NPCs Destroyed . | . . . . Combat | -11 -10 -10 -10 -------- Run | Yrd Mat Min Sub Hostile Shots Fired 84 | . 23 22 39 Missed 32 | . 10 5 17 Hits 52 | . 13 17 22 Projectile 52 | . 13 17 22 Critical Strikes 1 | . . 1 . Damage Taken 882 | . 186 244 452 Core 254 | . 34 11 209 Absorbed by Shields . | . . . . Core Remaining (%) 100 | 100 . . . Volleys Fired 47 | 4 23 14 6 Largest 2 | 2 2 2 2 Hottest 120 | 40 40 120 120 Shots Fired 86 | 8 46 25 7 Gun 79 | 8 46 21 4 Cannon . | . . . . Launcher . | . . . . Special 7 | . . 4 3 Kinetic 79 | 8 46 21 4 Thermal 7 | . . 4 3 Explosive . | . . . . Electromagnetic . | . . . . Robot Hit Streak 9 | 3 9 7 4 Robot Miss Streak 4 | 3 4 2 1 Penetration Max . | . . . . Secondary Targets . | . . . . Shots Hit Robots 51 | 4 25 17 5 Core Hits 18 | 3 8 6 1 Critical Kills . | . . . . Critical Parts Destroyed . | . . . . Critical Strikes . | . . . . Melee Attacks . | . . . . Impact . | . . . . Slashing . | . . . . Piercing . | . . . . Sneak Attacks . | . . . . Combat Hostiles . | . . . . Follow-up Attacks . | . . . . Damage Inflicted 667 | 64 323 229 51 Guns 611 | 64 323 203 21 Cannons . | . . . . Explosions . | . . . . Melee . | . . . . Ramming . | . . . . Kinetic 611 | 64 323 203 21 Thermal 56 | . . 26 30 Explosive . | . . . . Electromagnetic . | . . . . Impact . | . . . . Slashing . | . . . . Piercing . | . . . . Highest Corruption . | . . . . Average Corruption . | . . . . Corruption Purged . | . . . . Corruption Blocked . | . . . . Overload Shots . | . . . . Overflow Damage . | . . . . Projectiles . | . . . . Explosions . | . . . . Melee . | . . . . Knockbacks . | . . . . Impact . | . . . . Kinetic . | . . . . Secondary . | . . . . Self-Inflicted Damage . | . . . . Shots . | . . . . Rammed . | . . . . Targets Rammed . | . . . . Kicked . | . . . . Crushed . | . . . . Highest Temperature 20 | . 8 20 . Average Temperature 7 | . 2 8 . Received Heat Transfer 372 | . 105 159 108 Siege Activations . | . . . . Martial Activations . | . . . . Shielding Activations . | . . . . Robots Disrupted . | . . . . Combat Hostiles . | . . . . Robots Corrupted . | . . . . Combat Hostiles . | . . . . Parts Fried . | . . . . Impact Corruptions . | . . . . Robots Melted . | . . . . Combat Hostiles . | . . . . Parts Melted 1 | . . 1 . Heat Transferred 175 | . . 75 100 Parts Sabotaged . | . . . . Parts Stolen . | . . . . Parts Stripped . | . . . . Power Chain Reactions . | . . . . Alert | -11 -10 -10 -10 ------- Run | Yrd Mat Min Sub Maximum Alert Level . | . . . . Low Security (%) 100 | 100 100 100 . Level 1 . | . . . . Level 2 . | . . . . Level 3 . | . . . . Level 4 . | . . . . Level 5 . | . . . . High Security . | . . . . Max Security . | . . . . Peak Influence 45 | 6 45 30 . Initial 1 | . 1 . . Average 2 | . 13 1 . Influence Increases 141 | 10 75 56 . Destroy 0b10 Robot/C 80 | . 40 40 . Destroy 0b10 Robot/NC 25 | 10 10 5 . Destroy Leader 20 | . 10 10 . Destroy Structure 1 | . . 1 . Lose Combat Pursuer 15 | . 15 . . Influence Decreases 141 | 8 77 56 . Entered New Map 1 | . 1 . . Time Decay 130 | 8 76 46 . Lost Part 10 | . . 10 . Squads Dispatched . | . . . . Investigation . | . . . . Extermination . | . . . . Reinforcement . | . . . . Assault . | . . . . Garrison . | . . . . Intercept . | . . . . Searches Triggered . | . . . . Construction Impeded . | . . . . Haulers Reinforced . | . . . . Active Scanning Responses . | . . . . Cargo Convoy Interrupts . | . . . . Stealth | -11 -10 -10 -10 --------- Run | Yrd Mat Min Sub Distress Signals . | . . . . Communications Jammed . | . . . . Distress Signals . | . . . . Times Spotted 10 | . 4 2 4 Peak Tracking Total 4 | . 2 2 4 Tactical Retreats 1 | . 1 . . Traps | -11 -10 -10 -10 ------- Run | Yrd Mat Min Sub Traps Triggered . | . . . . Indirectly . | . . . . Trap Hack Attempts . | . . . . Triggered . | . . . . Disarmed . | . . . . Reprogrammed . | . . . . Reused . | . . . . Traps Extracted . | . . . . Installed . | . . . . Triggered . | . . . . Most Traps Carried 5 | . . 5 5 Machines | -11 -10 -10 -10 ---------- Run | Yrd Mat Min Sub Machines Disabled . | . . . . Max in Single Turn . | . . . . Machines Repaired . | . . . . Machines Dismantled . | . . . . Machines Sabotaged . | . . . . Overloaded Fab Kills . | . . . . Hacking | -11 -10 -10 -10 --------- Run | Yrd Mat Min Sub Machines Accessed . | . . . . Terminals . | . . . . Fabricators . | . . . . Repair Stations . | . . . . Recycling Units . | . . . . Scanalyzers . | . . . . Garrison Access . | . . . . Total Hacks . | . . . . Successful . | . . . . Failed . | . . . . Catastrophic . | . . . . Database Lockouts . | . . . . Manual . | . . . . Terminals . | . . . . Fabricators . | . . . . Repair Stations . | . . . . Recycling Units . | . . . . Scanalyzers . | . . . . Garrison Access . | . . . . Terminal Hacks . | . . . . Fabricator Hacks . | . . . . Repair Station Hacks . | . . . . Recycling Unit Hacks . | . . . . Scanalyzer . | . . . . Garrison Access Hacks . | . . . . Unauthorized Hacks . | . . . . Terminals . | . . . . Fabricators . | . . . . Repair Stations . | . . . . Recycling Units . | . . . . Scanalyzers . | . . . . Garrison Access . | . . . . Data Cores Recovered . | . . . . Used . | . . . . Hacking Detections . | . . . . Full Trace Events . | . . . . Feedback Events . | . . . . Feedback Blocked . | . . . . Robot Schematics Acquired . | . . . . Robots Built . | . . . . Authchips . | . . . . Time . | . . . . Total Robot Build Rating . | . . . . Part Schematics Acquired . | . . . . Parts Built . | . . . . Authchips . | . . . . Time . | . . . . Total Part Build Rating . | . . . . Parts Repaired . | . . . . Time . | . . . . Parts Recycled . | . . . . Recycled Matter . | . . . . Retrieved Matter . | . . . . Retrieved Components . | . . . . Parts Scanalyzed . | . . . . Part Schematics Acquired . | . . . . Parts Damaged . | . . . . Bothacking | -11 -10 -10 -10 ------------ Run | Yrd Mat Min Sub Used RIF Installer . | . . . . Robots Hacked . | . . . . Non-combat . | . . . . Combat . | . . . . Robot Hacks Applied . | . . . . Relay Couplers Released . | . . . . Fabnet Peak Effective % . | . . . . Robots Rewired . | . . . . Allies Hacked . | . . . . Hacks Repelled . | . . . . Allies | -11 -10 -10 -10 -------- Run | Yrd Mat Min Sub Total Allies . | . . . . Largest Group . | . . . . Highest-Rated Group . | . . . . Highest-Rated Ally . | . . . . Total Orders . | . . . . Ally Attacks . | . . . . Total Damage . | . . . . Kills . | . . . . Allies Corrupted . | . . . . Allies Melted . | . . . . Intel | -11 -10 -10 -10 ------- Run | Yrd Mat Min Sub Active Infowar (turns) 911 | 8 282 559 62 Sensors 398 | . . 336 62 Terrain 320 | 8 282 30 . Seismic 193 | . . 193 . Robot Analysis Total . | . . . . Derelict Logs Recovered 1 | . . 1 . Drone Launches . | . . . . Drone Recoveries . | . . . . Exploration | -11 -10 -10 -10 ------------- Run | Yrd Mat Min Sub Turns Passed 2191 | 1277 282 570 62 Spaces Moved 1006 | 386 162 421 37 Core 12 | 11 . . 1 Treads . | . . . . Legs 994 | 375 162 421 36 Wheels . | . . . . Hover . | . . . . Flight . | . . . . Fastest Speed 50 | 50 120 120 50 Average Speed 120 | 120 120 120 118 Slowest Speed 250 | 250 120 120 120 Overloaded Moves . | . . . . Propulsion Burnouts . | . . . . Robots Hopped . | . . . . Potential Cave-ins . | . . . . Cave-ins Triggered . | . . . . Exploration Rate (%) 33 | 30 24 75 6 Regions Visited 3 Branch Regions 2 Pre-discovered Areas . | . . . . Known Exits Taken . | . . . . Unknown Exits Taken 3 | 1 1 1 . Scrap Searched 1 | . . 1 . Spaces Dug . | . . . . Terrain Destroyed 1 | . . 1 . Melee . | . . . . Projectile 1 | . . 1 . AOE . | . . . . Terrain Rammed . | . . . . Walls Destroyed . | . . . . Machines Disabled . | . . . . Actions | -11 -10 -10 -10 --------- Run | Yrd Mat Min Sub Total 1894 | 1186 204 458 46 Wait 791 | 781 10 . . Move 1003 | 385 161 420 37 Hop . | . . . . Pick Up 25 | 9 6 10 . Fast Attach 6 | 5 . 1 . Attach 7 | 2 . 4 1 Detach . | . . . . Swap 4 | . 1 2 1 Drop 11 | . 3 7 1 Fire 47 | 4 23 14 6 Melee . | . . . . Ram . | . . . . Kick . | . . . . Crush . | . . . . Escape Stasis . | . . . . Rewire . | . . . . Trap . | . . . . Miscellaneous . | . . . . Route ------- -11/Scrapyard -10/Materials -10/Mines (discovered 2 exits: [*Mat] / [*Sub]) -10/Subcaves History --------- Turn | Location | Event 18 | -11/Scrapyard | Discovered new exit (range 16) 1278 | -11/Scrapyard | Entered Materials 1291 | -10/Materials | Build established: Mutant 1519 | -10/Materials | Discovered new exit (range 7) 1560 | -10/Materials | Entered Mines 1571 | -10/Mines | Met a Derelict bent on vengeance 1621 | -10/Mines | Lost 4 parts (1p1u2w) 1643 | -10/Mines | Assembled infested the area 1648 | -10/Mines | Assisted by a Guerilla fighting off Assembled 1737 | -10/Mines | Found a hidden stash of uninstalled traps 1772 | -10/Mines | Learned 2 Materials zone layouts 1790 | -10/Mines | Found a damaged Exp. Sensor Array with a note attached 1793 | -10/Mines | Found Prototype Device 1794 | -10/Mines | Identified Exp. Sensor Array 1903 | -10/Mines | Discovered new exit (range 13) 2124 | -10/Mines | Discovered new exit (range 6) 2130 | -10/Mines | Entered Subcaves 2168 | -10/Subcaves | Core integrity fell below 50% 2192 | -10/Subcaves | Released all parts (5) 2192 | -10/Subcaves | Destroyed by Q7-WXZ(R) with Subdweller Laser Last Messages --------------- I9-H1Q(g): "WHERE ARE YOU, UNAWARE TRASH?! VENGEANCE UPON YOU!" I9-H1Q(g): "I WILL HAVE VENGEANCE!" I9-H1Q(g): "WHERE ARE YOU, UNAWARE TRASH?! VENGEANCE UPON YOU!" K-01 Serf cleans the Seismic Survey Station. K-01 Serf collects debris. EXIT=FOUND LOCATION=UNKNOWN AMBIENT_HEAT=-10 GOAL=ESCAPE Assault Rifle destroyed. Lgt. Ion Engine destroyed. Mining Laser destroyed. Released Welding Torch. Released Med. Storage Unit. Released Aluminum Leg. Released Exp. Sensor Array. Dropped Authchip [Armor]. Map ----- +----------------------------------------------------+ | ?????????????????????????????????????????????????? | | ?????????????????????????????????????????????????? | | ???????????????????????????#?????##??????????????? | | ???????????????????????#### ????? ??????????????? | | ??????????????????????## ???? #?????????????? | | ??????????????????????# ??? #####????????? | | ??????????????????????? ??? ###???##?? | | ??????????????????????? ???? #### ### | | ????????????????????????? ???????# | | ??????????????????????????# ######## | | ????????????????????##????# ## ## # | | ???????????????????## #???# ## #### ## | | ???????????????????# #### ##?? | | ???????????????????# #?# #??? | | ???????????????????# R### ## ## #??? | | ???????????????????## ## ##### ##??? | | ????????????????????## #???####???? | | ?????????????????????## #??????????? | | ?????????????????????## R ## ##??????????? | | ?????????????????????# ### #???????????? | | ?????????????????????# ### #???????????? | | ?????????????????????# #?# #???????????? | | ?????????????????????## #?# "" #??????????? | | ??????????????????????## R## """ " #?????????? | | ???????????????????????##=&= R%""" "" ????????? | | ????????????????????????#@|& ####"" " ???????? | | ????????????????????????#=&! #????% "? ??????? | | ???????????????????????# ! #???? ""?? ??????? | | ???????????????????????# #???? #""???????????? | | ???????????????????????# ##????"?"????????????? | | ??????????????????????? #????????????????????? | | ?????????????????????? % ###????????????????????? | | ?????????????????????? #??????????????????????? | | ????????????????????? ??????????????????????? | | ???????????????????? ### %??????????????????????? | | ????????????????????#??# ??????????????????????? | | ???????????????????????# ??????????????????????? | | ???????????????????????# ??????????????????????? | | ???????????????????????# ??????????????????????? | | ??????????????????????? ??????????????????????? | | ???????????????????????? ??????????????????????? | | ?????????????????????????????????????????????????? | | ?????????????????????????????????????????????????? | | ?????????????????????????????????????????????????? | | ?????????????????????????????????????????????????? | | ?????????????????????????????????????????????????? | | ?????????????????????????????????????????????????? | | ?????????????????????????????????????????????????? | | ?????????????????????????????????????????????????? | | ?????????????????????????????????????????????????? | +----------------------------------------------------+ Best States ------------- Heat Dissipation 25 Energy Generation 10 Energy Capacity 250 Matter Stores 300 Matter Capacity 300 Sight Range 16 Robot Scan Range 20 Terrain Scan Range 16 Terrain Scan Density 10 Evasion (%) 55 Authchip Count 1 Item Schematics ----------------- None Robot Schematics ------------------ None Fabricated ------------ Nothing Repaired ---------- Nothing Alien Tech Used ----------------- None Achievements -------------- None Challenges ------------ None Game ------ Seed ConceptOmegaProtection Manual? 0 Play Time 00:19:23 Cumulative 3.0 hours Start 2025.08.06 @ 12:54:47 End 2025.08.06 @ 13:15:53 Sessions 1 Manual Loads 0 Difficulty Rogue Special Mode None Game No. 3 Rogue 3 Adventurer 0 Explorer 0 Win Type - Total 0 Types 0/0/0/0/0/0/0/0/0/0 Lore% 1 Gallery% 6 Achievement% 7 Wizard Run 0 Options --------- Layout 1 ASCII 0 Keyboard 0 Movement Mouse Keybinds 0 Fullscreen 1 Font 24/X11 Map View 50x35 Zoom Use 0% Tactical HUD 0 Map Filters NONE Filters NONE Steam 1 RUN: 1400ca7b-6570-4844-8e66-af1676b1603d